fUSD/lending_fUSD_20250905
["ID","MTS","AMOUNT","RATE_DAILY","PERIOD"]
[383624363,1757045450228,-178.39501043,0.00025072,2]
[383624364,1757045450238,-168.0,0.00025081,2]
[383624365,1757045450247,-626.14247695,0.00025082,2]
[383624366,1757045450257,-510.12096061,0.00025082,2]
[383624367,1757045450266,-500.0,0.00025092,2]
[383624368,1757045450276,-965.114007,0.00025094,2]
[383624369,1757045450285,-500.0,0.0002513,14]
[383624370,1757045450295,-25239.4407081,0.00025151,3]
[383624371,1757045450306,-25239.4407081,0.00025161,3]
[383624372,1757045450316,-556.448,0.00025162,9]
[383624373,1757045450328,-400.58511941,0.0002517,2]
[383624374,1757045450339,-3370.0,0.00025171,2]
[383624375,1757045450348,-400.0,0.00025171,2]
[383624376,1757045450357,-400.0,0.00025171,2]
[383624377,1757045450379,-400.0,0.00025171,2]
[383624378,1757045450389,-400.0,0.00025171,2]
[383624379,1757045450398,-400.0,0.00025171,2]
[383624380,1757045450408,-481.0,0.00025171,2]
[383624381,1757045450420,-414.555818,0.00025171,2]
[383624382,1757045450431,-400.0,0.00025171,2]
[383624383,1757045450446,-189.46,0.00025171,2]
[383624384,1757045450456,-400.0,0.00025171,2]
[383624385,1757045450466,-400.0,0.00025171,2]
[383624386,1757045450476,-417.54287786,0.00025171,2]
[383624387,1757045450486,-400.0,0.00025171,2]
[383624388,1757045450495,-400.0,0.00025171,2]
[383624389,1757045450507,-400.0,0.00025171,2]
[383624390,1757045450517,-385.71144358,0.00025171,2]
[383624391,1757045450527,-202.95395382,0.00025171,2]
[383624392,1757045450536,-408.79678527,0.00025171,2]
[383624393,1757045450559,-400.0,0.00025171,2]
[383624394,1757045450570,-420.51097094,0.00025171,2]
[383624395,1757045450579,-519.29531146,0.00025171,2]
[383624396,1757045450588,-162.6572291,0.00025171,2]
[383624397,1757045450597,-400.0,0.00025171,2]
[383624398,1757045450607,-500.0,0.00025171,2]
[383624399,1757045450615,-411.52674442,0.00025171,2]
[383624400,1757045450624,-400.0,0.00025171,2]
[383624401,1757045450633,-400.0,0.00025171,2]
[383624402,1757045450643,-400.0,0.00025171,2]
[383624403,1757045450653,-400.0,0.00025171,2]
[383624404,1757045450662,-400.0,0.00025171,2]
[383624405,1757045450671,-400.0,0.00025171,2]
[383624406,1757045450682,-400.0,0.00025171,2]
[383624407,1757045450692,-400.0,0.00025171,2]
[383624408,1757045450702,-400.0,0.00025171,2]
[383624409,1757045450714,-400.0,0.00025171,2]
[383624410,1757045450724,-400.0,0.00025171,2]
[383624411,1757045450734,-400.0,0.00025171,2]
[383624412,1757045450744,-406.55605092,0.00025171,2]
[383624413,1757045450754,-400.0,0.00025171,2]
[383624414,1757045450764,-400.0,0.00025171,2]
[383624415,1757045450774,-400.0,0.00025171,2]
[383624416,1757045450784,-400.0,0.00025171,2]
[383624417,1757045450794,-400.0,0.00025171,2]
[383624418,1757045450804,-402.43086887,0.00025171,2]
[383624419,1757045450813,-400.0,0.00025171,2]
[383624420,1757045450823,-400.0,0.00025171,2]
[383624421,1757045450837,-400.0,0.00025171,2]
[383624422,1757045450848,-400.0,0.00025171,2]
[383624423,1757045450858,-400.0,0.00025171,2]
[383624424,1757045450867,-400.0,0.00025171,2]
[383624425,1757045450877,-400.0,0.00025171,2]
[383624426,1757045450887,-400.0,0.00025171,2]
[383624427,1757045450898,-411.41238523,0.00025171,2]
[383624428,1757045450908,-404.7623811,0.00025171,2]
[383624429,1757045450918,-400.0,0.00025171,2]
[383624430,1757045450928,-400.0,0.00025171,2]
[383624431,1757045450939,-232.82541153,0.00025171,2]
[383624432,1757045450948,-490.72,0.00025171,2]
[383624433,1757045450958,-400.0,0.00025171,2]
[383624434,1757045450969,-400.0,0.00025171,2]
[383624435,1757045450979,-400.0,0.00025171,2]
[383624436,1757045450990,-400.0,0.00025171,2]
[383624437,1757045451000,-400.0,0.00025171,2]
[383624438,1757045451010,-400.0,0.00025171,2]
[383624439,1757045451021,-400.0,0.00025171,2]
[383624440,1757045451031,-400.0,0.00025171,2]
[383624441,1757045451041,-400.0,0.00025171,2]
[383624442,1757045451051,-400.0,0.00025171,2]
[383624443,1757045451060,-400.0,0.00025171,2]
[383624444,1757045451076,-400.0,0.00025171,2]
[383624445,1757045451088,-400.0,0.00025171,2]
[383624446,1757045451098,-400.0,0.00025171,2]
[383624447,1757045451108,-400.0,0.00025171,2]
[383624448,1757045451118,-400.0,0.00025171,2]
[383624449,1757045451129,-407.668488,0.00025171,2]
[383624450,1757045451139,-400.0,0.00025171,2]
[383624451,1757045451149,-400.0,0.00025171,2]
[383624452,1757045451159,-400.0,0.00025171,2]
[383624453,1757045451169,-400.0,0.00025171,2]
[383624454,1757045451180,-400.0,0.00025171,2]
[383624455,1757045451191,-400.0,0.00025171,2]
[383624456,1757045451200,-400.0,0.00025171,2]
[383624457,1757045451213,-400.0,0.00025171,2]
[383624458,1757045451222,-400.0,0.00025171,2]
[383624459,1757045451231,-400.0,0.00025171,2]
[383624460,1757045451240,-1135.87,0.00025171,2]
[383624461,1757045451249,-400.0,0.00025171,2]
[383624462,1757045451259,-400.0,0.00025171,2]
[383624463,1757045451270,-400.0,0.00025171,2]
[383624464,1757045451282,-553.22,0.00025171,2]
[383624465,1757045451292,-400.0,0.00025171,2]
[383624466,1757045451306,-400.0,0.00025171,2]
[383624467,1757045451317,-400.0,0.00025171,2]
[383624468,1757045451327,-1000.0,0.00025171,2]
[383624469,1757045451337,-400.0,0.00025171,2]
[383624470,1757045451348,-400.0,0.00025171,2]
[383624471,1757045451358,-400.0,0.00025171,2]
[383624472,1757045451368,-400.0,0.00025171,2]
[383624473,1757045451379,-400.0,0.00025171,2]
[383624474,1757045451391,-400.0,0.00025171,2]
[383624475,1757045451401,-379.66820358,0.00025171,2]
[383624476,1757045451410,-400.0,0.00025171,2]
[383624477,1757045451422,-400.0,0.00025171,2]
[383624478,1757045451432,-400.0,0.00025171,2]
[383624479,1757045451442,-400.0,0.00025171,2]
[383624480,1757045451452,-400.0,0.00025171,2]
[383624481,1757045451462,-470.34839056,0.00025171,2]
[383624482,1757045451472,-400.0,0.00025171,2]
[383624483,1757045451483,-659.02,0.00025171,2]
[383624484,1757045451493,-400.0,0.00025171,2]
[383624485,1757045451506,-693.59,0.00025171,2]
[383624486,1757045451517,-400.0,0.00025171,2]
[383624487,1757045451528,-400.0,0.00025171,2]
[383624488,1757045451539,-400.0,0.00025171,2]
[383624489,1757045451552,-400.0,0.00025171,2]
[383624490,1757045451564,-1013.01,0.00025171,2]
[383624491,1757045451575,-412.09865059,0.00025171,2]
[383624492,1757045451585,-403.99396208,0.00025171,2]
[383624493,1757045451595,-388.37658399,0.00025171,2]
[383624494,1757045451605,-404.85217042,0.00025171,2]
[383624495,1757045451616,-436.43846379,0.00025171,2]
[383624496,1757045451627,-213.53245658,0.00025171,2]
[383624497,1757045451638,-400.0,0.00025171,2]
[383624498,1757045451648,-400.0,0.00025171,2]
[383624499,1757045451658,-400.0,0.00025171,2]
[383624500,1757045451668,-400.0,0.00025171,2]
[383624501,1757045451678,-469.34662036,0.00025171,2]
[383624502,1757045451688,-400.0,0.00025171,2]
[383624503,1757045451699,-408.16828737,0.00025171,2]
[383624504,1757045451709,-400.0,0.00025171,2]
[383624505,1757045451721,-408.87928608,0.00025171,2]
[383624506,1757045451732,-400.0,0.00025171,2]
[383624507,1757045451742,-400.0,0.00025171,2]
[383624508,1757045451752,-410.69380929,0.00025171,2]
[383624509,1757045451764,-400.0,0.00025172,2]
[383624510,1757045451775,-518.98394426,0.00025172,2]
[383624511,1757045451786,-402.1580183,0.00025172,2]
[383624512,1757045451797,-400.0,0.00025172,2]
[383624513,1757045451809,-400.0,0.00025172,2]
[383624514,1757045451818,-25239.4407081,0.00025175,3]
[383624515,1757045451828,-400.0,0.00025182,2]
[383624516,1757045451838,-164.35904569,0.00025182,2]
[383624517,1757045451848,-400.0,0.00025182,2]
[383624518,1757045451858,-468.17916457,0.00025182,2]
[383624519,1757045451869,-478.87775734,0.00025182,2]
[383624520,1757045451880,-400.0,0.00025182,2]
[383624521,1757045451897,-392.27415177,0.00025182,2]
[383624522,1757045451908,-400.0,0.00025182,2]
[383624523,1757045451918,-400.0,0.00025182,2]
[383624524,1757045451928,-400.0,0.00025182,2]
[383624525,1757045451938,-500.0,0.00025184,2]
[383624526,1757045451947,-500.0,0.00025184,2]
[383624527,1757045451957,-454.01278207,0.00025185,2]
[383624528,1757045451967,-25239.4407081,0.00025185,3]
[383624529,1757045451977,-151.0,0.00025185,7]
[383624530,1757045451988,-500.0,0.00025194,2]
[383624531,1757045451998,-50478.8814161,0.00025195,3]
[383624532,1757045452012,-330.62,0.000252,2]
[383624533,1757045452022,-500.0,0.00025204,2]
[383624534,1757045452033,-500.0,0.00025204,2]
[383624535,1757045452042,-500.0,0.00025204,2]
[383624536,1757045452052,-400.0,0.00025204,2]
[383624537,1757045452062,-400.0,0.00025204,2]
[383624538,1757045452072,-400.0,0.00025204,2]
[383624539,1757045452082,-2614.78,0.00025204,2]
[383624540,1757045452093,-400.0,0.00025204,2]
[383624541,1757045452103,-400.0,0.00025204,2]
[383624542,1757045452112,-400.0,0.00025204,2]
[383624543,1757045452122,-150.0,0.00025204,2]
[383624544,1757045452133,-400.0,0.00025205,2]
[383624545,1757045452143,-541.10828314,0.00025205,2]
[383624546,1757045452152,-400.0,0.00025205,2]
[383624547,1757045452162,-355.64074556,0.00025205,2]
[383624548,1757045452173,-400.0,0.00025205,2]
[383624549,1757045452184,-400.0,0.00025205,2]
[383624550,1757045452197,-400.0,0.00025205,2]
[383624551,1757045452208,-400.0,0.00025205,2]
[383624552,1757045452218,-400.0,0.00025205,2]
[383624553,1757045452229,-400.0,0.00025205,2]
[383624554,1757045452239,-400.0,0.00025205,2]
[383624555,1757045452250,-400.0,0.00025205,2]
[383624556,1757045452261,-293.22050988,0.00025205,2]
[383624557,1757045452272,-400.0,0.00025205,2]
[383624558,1757045452283,-495.83043243,0.00025205,2]
[383624559,1757045452293,-400.0,0.00025205,2]
[383624560,1757045452305,-400.0,0.00025205,2]
[383624561,1757045452316,-400.0,0.00025205,2]
[383624562,1757045452327,-400.0,0.00025205,2]
[383624563,1757045452339,-400.0,0.00025205,2]
[383624564,1757045452348,-400.0,0.00025205,2]
[383624565,1757045452358,-400.0,0.00025205,2]
[383624566,1757045452368,-463.57185578,0.00025205,2]
[383624567,1757045452379,-436.34967014,0.00025205,2]
[383624568,1757045452391,-400.0,0.00025205,2]
[383624569,1757045452400,-400.0,0.00025205,2]
[383624570,1757045452411,-296.17458179,0.00025205,2]
[383624571,1757045452420,-400.0,0.00025205,2]
[383624572,1757045452430,-400.0,0.00025205,2]
[383624573,1757045452443,-312.38894575,0.00025205,2]
[383624574,1757045452462,-400.0,0.00025205,2]
[383624575,1757045452476,-400.0,0.00025205,2]
[383624576,1757045452487,-400.0,0.00025205,2]
[383624577,1757045452498,-400.0,0.00025205,2]
[383624578,1757045452510,-400.0,0.00025205,2]
[383624579,1757045452522,-400.0,0.00025205,2]
[383624580,1757045452533,-400.0,0.00025205,2]
[383624581,1757045452543,-400.0,0.00025205,2]
[383624582,1757045452559,-400.0,0.00025205,2]
[383624583,1757045452569,-400.0,0.00025205,2]
[383624584,1757045452581,-400.0,0.00025205,2]
[383624585,1757045452592,-411.51674751,0.00025205,2]
[383624586,1757045452603,-400.0,0.00025205,2]
[383624587,1757045452614,-400.0,0.00025205,2]
[383624588,1757045452624,-400.0,0.00025205,2]
[383624589,1757045452634,-400.0,0.00025205,2]
[383624590,1757045452644,-400.0,0.00025205,2]
[383624591,1757045452654,-400.0,0.00025205,2]
[383624592,1757045452663,-400.0,0.00025205,2]
[383624593,1757045452674,-346.67153567,0.00025205,2]
[383624594,1757045452687,-400.0,0.00025205,2]
[383624595,1757045452698,-400.0,0.00025205,2]
[383624596,1757045452708,-413.53198015,0.00025205,2]
[383624597,1757045452718,-400.0,0.00025205,2]
[383624598,1757045452728,-400.0,0.00025205,2]
[383624599,1757045452738,-400.0,0.00025205,2]
[383624600,1757045452748,-404.00688286,0.00025205,2]
[383624601,1757045452758,-400.0,0.00025205,2]
[383624602,1757045452768,-400.0,0.00025205,2]
[383624603,1757045452778,-400.0,0.00025205,2]
[383624604,1757045452788,-400.0,0.00025205,2]
[383624605,1757045452797,-400.0,0.00025205,2]
[383624606,1757045452807,-400.0,0.00025205,2]
[383624607,1757045452817,-405.92332855,0.00025205,2]
[383624608,1757045452827,-408.19735144,0.00025205,2]
[383624609,1757045452837,-400.0,0.00025205,2]
[383624610,1757045452847,-158.30948583,0.00025205,2]
[383624611,1757045452856,-400.0,0.00025205,2]
[383624612,1757045452866,-400.0,0.00025205,2]
[383624613,1757045452876,-406.42491936,0.00025205,2]
[383624614,1757045452886,-400.0,0.00025205,2]
[383624615,1757045452895,-400.0,0.00025205,2]
[383624616,1757045452905,-400.0,0.00025205,2]
[383624617,1757045452919,-400.0,0.00025205,2]
[383624618,1757045452929,-400.0,0.00025205,2]
[383624619,1757045452939,-400.0,0.00025205,2]
[383624620,1757045452948,-400.0,0.00025205,2]
[383624621,1757045452958,-400.0,0.00025205,2]
[383624622,1757045452968,-400.0,0.00025205,2]
[383624623,1757045452978,-475.87162426,0.00025205,2]
[383624624,1757045452988,-400.0,0.00025205,2]
[383624625,1757045452997,-400.0,0.00025205,2]
[383624626,1757045453007,-312.18411213,0.00025205,2]
[383624627,1757045453017,-400.0,0.00025205,2]
[383624628,1757045453027,-227.72704816,0.00025205,2]
[383624629,1757045453037,-400.0,0.00025205,2]
[383624630,1757045453047,-400.0,0.00025205,2]
[383624631,1757045453056,-400.0,0.00025205,2]
[383624632,1757045453067,-400.0,0.00025205,2]
[383624633,1757045453076,-400.0,0.00025205,2]
[383624634,1757045453086,-178.8141293,0.00025205,2]
[383624635,1757045453096,-400.0,0.00025205,2]
[383624636,1757045453105,-400.0,0.00025205,2]
[383624637,1757045453115,-400.0,0.00025205,2]
[383624638,1757045453124,-400.0,0.00025205,2]
[383624639,1757045453134,-400.0,0.00025205,2]
[383624640,1757045453148,-400.0,0.00025205,2]
[383624641,1757045453158,-400.0,0.00025205,2]
[383624642,1757045453167,-199.78657383,0.00025205,2]
[383624643,1757045453410,-400.0,0.00025205,2]
[383624644,1757045453420,-400.0,0.00025205,2]
[383624645,1757045453430,-466.37553382,0.00025205,2]
[383624646,1757045453441,-400.0,0.00025205,2]
[383624647,1757045453450,-400.0,0.00025205,2]
[383624648,1757045453459,-400.0,0.00025205,2]
[383624649,1757045453469,-400.0,0.00025205,2]
[383624650,1757045453478,-491.35700618,0.00025205,2]
[383624651,1757045453487,-400.0,0.00025205,2]
[383624652,1757045453496,-400.0,0.00025205,2]
[383624653,1757045453506,-294.96470078,0.00025205,2]
[383624654,1757045453515,-361.9894787,0.00025205,2]
[383624655,1757045453528,-400.0,0.00025205,2]
[383624656,1757045453540,-400.0,0.00025205,2]
[383624657,1757045453553,-206.20506078,0.00025205,2]
[383624658,1757045453562,-400.0,0.00025205,2]
[383624659,1757045453572,-400.0,0.00025205,2]
[383624660,1757045453583,-301.87,0.00025205,2]
[383624661,1757045453594,-400.0,0.00025205,2]
[383624662,1757045453605,-400.0,0.00025205,2]
[383624663,1757045453615,-400.0,0.00025205,2]
[383624664,1757045453628,-400.0,0.00025205,2]
[383624665,1757045453638,-400.0,0.00025205,2]
[383624666,1757045453648,-577.81,0.00025205,2]
[383624667,1757045453658,-400.0,0.00025205,2]
[383624668,1757045453668,-400.0,0.00025205,2]
[383624669,1757045453677,-1340.23,0.00025205,2]
[383624670,1757045453687,-400.0,0.00025205,2]
[383624671,1757045453696,-241.04628155,0.00025205,2]
[383624672,1757045453706,-400.0,0.00025205,2]
[383624673,1757045453716,-400.0,0.00025205,2]
[383624674,1757045453725,-400.0,0.00025205,2]
[383624675,1757045453735,-828.84,0.00025205,2]
[383624676,1757045453744,-400.0,0.00025205,2]
[383624677,1757045453754,-400.0,0.00025205,2]
[383624678,1757045453764,-1218.03,0.00025205,2]
[383624679,1757045453773,-701.33,0.00025205,2]
[383624680,1757045453783,-400.0,0.00025205,2]
[383624681,1757045453792,-400.0,0.00025205,2]
[383624682,1757045453801,-400.0,0.00025205,2]
[383624683,1757045453812,-269.58315705,0.00025205,2]
[383624684,1757045453821,-400.0,0.00025205,2]
[383624685,1757045453831,-400.0,0.00025205,2]
[383624686,1757045453840,-400.0,0.00025205,2]
[383624687,1757045453850,-400.0,0.00025205,2]
[383624688,1757045453859,-400.0,0.00025205,2]
[383624689,1757045453869,-400.0,0.00025205,2]
[383624690,1757045453879,-400.0,0.00025205,2]
[383624691,1757045453889,-400.0,0.00025205,2]
[383624692,1757045453899,-400.0,0.00025205,2]
[383624693,1757045453909,-400.0,0.00025205,2]
[383624694,1757045453919,-400.0,0.00025205,2]
[383624695,1757045453928,-400.0,0.00025205,2]
[383624696,1757045453939,-400.0,0.00025205,2]
[383624697,1757045453948,-400.0,0.00025205,2]
[383624698,1757045453958,-400.0,0.00025205,2]
[383624699,1757045453967,-400.0,0.00025205,2]
[383624700,1757045453976,-400.0,0.00025205,2]
[383624701,1757045453986,-400.0,0.00025205,2]
[383624702,1757045454003,-400.0,0.00025205,2]
[383624703,1757045454015,-424.56,0.00025205,2]
[383624704,1757045454025,-400.0,0.00025205,2]
[383624705,1757045454035,-400.0,0.00025205,2]
[383624706,1757045454045,-176.85,0.00025205,2]
[383624707,1757045454055,-400.0,0.00025205,2]
[383624708,1757045454066,-400.0,0.00025205,2]
[383624709,1757045454076,-400.0,0.00025205,2]
[383624710,1757045454085,-400.0,0.00025205,2]
[383624711,1757045454095,-390.28222866,0.00025205,2]
[383624712,1757045454105,-400.0,0.00025205,2]
[383624713,1757045454115,-400.0,0.00025205,2]
[383624714,1757045454125,-436.85372777,0.00025205,2]
[383624715,1757045454135,-179.94643521,0.00025205,2]
[383624716,1757045454146,-454.7674727,0.00025205,2]
[383624717,1757045454156,-400.0,0.00025205,2]
[383624718,1757045454166,-400.0,0.00025205,2]
[383624719,1757045454176,-575.41,0.00025205,2]
[383624720,1757045454186,-400.0,0.00025205,2]
[383624721,1757045454196,-400.0,0.00025205,2]
[383624722,1757045454206,-3097.05,0.00025205,2]
[383624723,1757045454216,-400.0,0.00025205,2]
[383624724,1757045454225,-400.0,0.00025205,2]
[383624725,1757045454235,-400.0,0.00025205,2]
[383624726,1757045454249,-400.0,0.00025205,2]
[383624727,1757045454259,-400.0,0.00025205,2]
[383624728,1757045454270,-400.0,0.00025205,2]
[383624729,1757045454280,-400.0,0.00025205,2]
[383624730,1757045454291,-168.0,0.00025214,2]
[383624731,1757045454301,-1000.0,0.00025221,2]
[383624732,1757045454311,-500.0,0.0002523,2]
[383624733,1757045454321,-500.0,0.0002527,14]
[383624734,1757045454331,-212.0727568,0.0002527,14]
[383624735,1757045454340,-150.0,0.0002527,14]
[383624736,1757045454351,-507.74245883,0.0002527,14]
[383624737,1757045454360,-150.0,0.0002527,14]
[383624738,1757045454371,-500.0,0.0002527,14]
[383624739,1757045454381,-572.27,0.0002527,14]
[383624740,1757045454392,-207.94176887,0.0002527,14]
[383624741,1757045454402,-171.04918136,0.00025288,3]
[383624742,1757045454412,-25239.4407081,0.00025316,3]
[383624743,1757045454422,-267.46074303,0.00025321,2]
[383624744,1757045454432,-503.42772203,0.00025321,2]
[383624745,1757045454442,-651.47776122,0.00025321,2]
[383624746,1757045454452,-1000.0,0.00025321,2]
[383624747,1757045454462,-508.97629836,0.00025321,2]
[383624748,1757045454475,-1000.97538847,0.00025321,2]
[383624749,1757045454485,-1000.0,0.00025321,2]
[383624750,1757045454495,-501.54984894,0.00025321,2]
[383624751,1757045454505,-1000.0,0.00025321,2]
[383624752,1757045454515,-1000.0,0.00025321,2]
[383624753,1757045454525,-25239.4407081,0.00025336,3]
[383624754,1757045454534,-471.51034967,0.00025346,2]
[383624755,1757045454544,-400.0,0.00025346,2]
[383624756,1757045454557,-400.0,0.00025346,2]
[383624757,1757045454567,-212.77507238,0.00025346,2]
[383624758,1757045454577,-400.0,0.00025346,2]
[383624759,1757045454587,-400.0,0.00025346,2]
[383624760,1757045454596,-457.50553241,0.00025346,2]
[383624761,1757045454606,-400.0,0.00025346,2]
[383624762,1757045454616,-425.37816115,0.00025346,2]
[383624763,1757045454626,-400.0,0.00025346,2]
[383624764,1757045454636,-400.0,0.00025346,2]
[383624765,1757045454646,-400.0,0.00025346,2]
[383624766,1757045454656,-400.0,0.00025346,2]
[383624767,1757045454666,-400.0,0.00025346,2]
[383624768,1757045454676,-400.0,0.00025346,2]
[383624769,1757045454686,-400.0,0.00025346,2]
[383624770,1757045454696,-400.0,0.00025346,2]
[383624771,1757045454711,-461.31166442,0.00025346,2]
[383624772,1757045454722,-400.0,0.00025346,2]
[383624773,1757045454733,-400.0,0.00025346,2]
[383624774,1757045454743,-400.0,0.00025346,2]
[383624775,1757045454753,-400.0,0.00025346,2]
[383624776,1757045454763,-400.0,0.00025346,2]
[383624777,1757045454773,-400.0,0.00025346,2]
[383624778,1757045454784,-400.0,0.00025346,2]
[383624779,1757045454794,-400.0,0.00025346,2]
[383624780,1757045454804,-481.35345856,0.00025346,2]
[383624781,1757045454814,-400.0,0.00025346,2]
[383624782,1757045454823,-400.0,0.00025346,2]
[383624783,1757045454834,-452.62340513,0.00025346,2]
[383624784,1757045454844,-400.0,0.00025346,2]
[383624785,1757045454855,-400.0,0.00025346,2]
[383624786,1757045454865,-423.16093457,0.00025346,2]
[383624787,1757045454875,-400.0,0.00025346,2]
[383624788,1757045454885,-237.7141244,0.00025346,2]
[383624789,1757045454895,-400.0,0.00025346,2]
[383624790,1757045454906,-430.45978655,0.00025346,2]
[383624791,1757045454916,-400.0,0.00025346,2]
[383624792,1757045454927,-400.0,0.00025346,2]
[383624793,1757045454937,-480.97532212,0.00025346,2]
[383624794,1757045454947,-400.0,0.00025346,2]
[383624795,1757045454958,-400.0,0.00025346,2]
[383624796,1757045454968,-400.0,0.00025346,2]
[383624797,1757045454979,-428.76066213,0.00025346,2]
[383624798,1757045454989,-400.0,0.00025346,2]
[383624799,1757045455000,-400.0,0.00025346,2]
[383624800,1757045455010,-442.25756178,0.00025346,2]
[383624801,1757045455021,-164.21278166,0.00025346,2]
[383624802,1757045455033,-432.97291266,0.00025346,2]
[383624803,1757045455045,-400.0,0.00025346,2]
[383624804,1757045455055,-400.0,0.00025346,2]
[383624805,1757045455067,-433.1859065,0.00025346,2]
[383624806,1757045455077,-400.0,0.00025346,2]
[383624807,1757045455087,-400.0,0.00025346,2]
[383624808,1757045455097,-400.0,0.00025346,2]
[383624809,1757045455107,-525.23725912,0.00025346,2]
[383624810,1757045455118,-400.0,0.00025346,2]
[383624811,1757045455130,-400.0,0.00025346,2]
[383624812,1757045455140,-280.68399585,0.00025346,2]
[383624813,1757045455150,-440.83793774,0.00025346,2]
[383624814,1757045455160,-400.0,0.00025346,2]
[383624815,1757045455170,-400.0,0.00025346,2]
[383624816,1757045455180,-400.0,0.00025346,2]
[383624817,1757045455190,-400.0,0.00025346,2]
[383624818,1757045455199,-409.00509897,0.00025346,2]
[383624819,1757045455209,-268.01698253,0.00025346,2]
[383624820,1757045455220,-400.0,0.00025346,2]
[383624821,1757045455230,-400.0,0.00025346,2]
[383624822,1757045455239,-408.51955945,0.00025346,2]
[383624823,1757045455249,-400.0,0.00025346,2]
[383624824,1757045455260,-400.0,0.00025346,2]
[383624825,1757045455270,-183.69202935,0.00025346,2]
[383624826,1757045455280,-400.0,0.00025346,2]
[383624827,1757045455290,-400.0,0.00025346,2]
[383624828,1757045455300,-415.5061505,0.00025346,2]
[383624829,1757045455310,-400.0,0.00025346,2]
[383624830,1757045455320,-400.0,0.00025346,2]
[383624831,1757045455329,-400.0,0.00025346,2]
[383624832,1757045455339,-400.0,0.00025346,2]
[383624833,1757045455349,-400.0,0.00025346,2]
[383624834,1757045455359,-400.0,0.00025346,2]
[383624835,1757045455369,-400.0,0.00025346,2]
[383624836,1757045455379,-400.0,0.00025346,2]
[383624837,1757045455389,-394.84538226,0.00025346,2]
[383624838,1757045455400,-400.0,0.00025346,2]
[383624839,1757045455409,-400.0,0.00025346,2]
[383624840,1757045455419,-339.51565273,0.00025346,2]
[383624841,1757045455428,-400.0,0.00025346,2]
[383624842,1757045455438,-400.0,0.00025346,2]
[383624843,1757045455448,-400.0,0.00025346,2]
[383624844,1757045455458,-400.0,0.00025346,2]
[383624845,1757045455469,-400.0,0.00025346,2]
[383624846,1757045455478,-400.0,0.00025346,2]
[383624847,1757045455488,-472.99322774,0.00025346,2]
[383624848,1757045455500,-408.92128926,0.00025346,2]
[383624849,1757045455509,-409.88780736,0.00025346,2]
[383624850,1757045455519,-400.0,0.00025346,2]
[383624851,1757045455528,-400.0,0.00025346,2]
[383624852,1757045455538,-400.0,0.00025346,2]
[383624853,1757045455549,-400.0,0.00025346,2]
[383624854,1757045455562,-400.0,0.00025346,2]
[383624855,1757045455572,-400.0,0.00025346,2]
[383624856,1757045455583,-400.0,0.00025346,2]
[383624857,1757045455593,-400.0,0.00025346,2]
[383624858,1757045455604,-400.0,0.00025346,2]
[383624859,1757045455616,-400.0,0.00025346,2]
[383624860,1757045455626,-400.0,0.00025346,2]
[383624861,1757045455636,-400.0,0.00025346,2]
[383624862,1757045455646,-400.0,0.00025346,2]